[Event "Early-Titled-Tuesday-Blitz-October-17-2023"]
[Site "Chess.com"]
[Date "2023.10.17"]
[Round "8"]
[White "GMKrikor"]
[Black "wadsy27"]
[Result "1-0"]
[WhiteElo "2823"]
[BlackElo "2658"]
[TimeControl "180+1"]
[EndTime "9:32:54 PDT"]
[Termination "GMKrikor won by checkmate"]

1. Nf3 {[%clk 0:03:00.9]} 1... d5 {[%clk 0:02:51.6]} 2. c4 {[%clk 0:03:00.6]}
2... c6 {[%clk 0:02:49.9]} 3. d4 {[%clk 0:03:00.5]} 3... Nf6 {[%clk 0:02:49.4]}
4. Nc3 {[%clk 0:03:01.3]} 4... a6 {[%clk 0:02:48.6]} 5. e3 {[%clk 0:02:56.4]}
5... b5 {[%clk 0:02:47]} 6. b3 {[%clk 0:02:56]} 6... Bg4 {[%clk 0:02:46.4]} 7.
Be2 {[%clk 0:02:53.9]} 7... e6 {[%clk 0:02:45]} 8. a4 {[%clk 0:02:53.7]} 8... b4
{[%clk 0:02:36.6]} 9. Na2 {[%clk 0:02:53.7]} 9... a5 {[%clk 0:02:35.2]} 10. Bb2
{[%clk 0:02:45.6]} 10... Be7 {[%clk 0:02:34]} 11. Nc1 {[%clk 0:02:45.9]} 11...
O-O {[%clk 0:02:32.2]} 12. Nd3 {[%clk 0:02:46.2]} 12... dxc4 {[%clk 0:02:28.7]}
13. bxc4 {[%clk 0:02:46.1]} 13... Nbd7 {[%clk 0:02:29]} 14. c5 {[%clk
0:02:25.3]} 14... Nd5 {[%clk 0:01:52.6]} 15. O-O {[%clk 0:02:24]} 15... Bxf3
{[%clk 0:01:47.4]} 16. Bxf3 {[%clk 0:02:23.7]} 16... e5 {[%clk 0:01:47.9]} 17.
dxe5 {[%clk 0:01:40.5]} 17... Nxc5 {[%clk 0:01:46.5]} 18. Nxc5 {[%clk
0:01:40.8]} 18... Bxc5 {[%clk 0:01:44.9]} 19. Rc1 {[%clk 0:01:41.6]} 19... Qb6
{[%clk 0:00:54]} 20. Qc2 {[%clk 0:01:22.2]} 20... Nxe3 {[%clk 0:00:52.2]} 21.
Qxc5 {[%clk 0:01:06.7]} 21... Qxc5 {[%clk 0:00:51.8]} 22. Rxc5 {[%clk
0:01:07.6]} 22... Nxf1 {[%clk 0:00:52.2]} 23. Kxf1 {[%clk 0:01:08.4]} 23... Rfd8
{[%clk 0:00:51.7]} 24. Ke2 {[%clk 0:01:05.6]} 24... Ra7 {[%clk 0:00:41.9]} 25.
Bc1 {[%clk 0:00:38.2]} 25... b3 {[%clk 0:00:22.5]} 26. Rc3 {[%clk 0:00:37.5]}
26... Rb7 {[%clk 0:00:21.4]} 27. Bb2 {[%clk 0:00:35.8]} 27... Rb4 {[%clk
0:00:19.9]} 28. Bxc6 {[%clk 0:00:33.3]} 28... Rc8 {[%clk 0:00:15]} 29. Kd3
{[%clk 0:00:33]} 29... Rd8+ {[%clk 0:00:12.7]} 30. Ke3 {[%clk 0:00:31.9]} 30...
Rc8 {[%clk 0:00:13.1]} 31. f4 {[%clk 0:00:29.5]} 31... h5 {[%clk 0:00:10.9]} 32.
g3 {[%clk 0:00:29.4]} 32... g6 {[%clk 0:00:11.1]} 33. Kd2 {[%clk 0:00:25]} 33...
Rd8+ {[%clk 0:00:10.8]} 34. Rd3 {[%clk 0:00:21.6]} 34... Rc8 {[%clk 0:00:08.8]}
35. Rc3 {[%clk 0:00:20.1]} 35... Rd8+ {[%clk 0:00:08.7]} 36. Ke3 {[%clk
0:00:19.3]} 36... Rc8 {[%clk 0:00:09.1]} 37. h3 {[%clk 0:00:19.2]} 37... h4
{[%clk 0:00:07.3]} 38. gxh4 {[%clk 0:00:16]} 38... Rc7 {[%clk 0:00:06]} 39. Kd3
{[%clk 0:00:12.5]} 39... Rxf4 {[%clk 0:00:05.6]} 40. Bd5 {[%clk 0:00:07.6]}
40... Rd7 {[%clk 0:00:03.9]} 41. Rc5 {[%clk 0:00:07.5]} 41... Rxh4 {[%clk
0:00:03.6]} 42. Kc3 {[%clk 0:00:05.9]} 42... Rxh3+ {[%clk 0:00:04]} 43. Kc4
{[%clk 0:00:06.6]} 43... Rh4+ {[%clk 0:00:03.6]} 44. Kxb3 {[%clk 0:00:06.7]}
44... Rh5 {[%clk 0:00:03.9]} 45. Rb5 {[%clk 0:00:05.7]} 45... Rh3+ {[%clk
0:00:03.6]} 46. Kc2 {[%clk 0:00:04.8]} 46... Rh4 {[%clk 0:00:03.6]} 47. Rxa5
{[%clk 0:00:03.5]} 47... Rxd5 {[%clk 0:00:02.3]} 48. Rxd5 {[%clk 0:00:03.2]}
48... Rxa4 {[%clk 0:00:02.9]} 49. Rd8+ {[%clk 0:00:03.7]} 49... Kh7 {[%clk
0:00:03]} 50. e6 {[%clk 0:00:04]} 50... Rc4+ {[%clk 0:00:02.7]} 51. Kb3 {[%clk
0:00:03.9]} 51... fxe6 {[%clk 0:00:02.4]} 52. Rh8# {[%clk 0:00:03.4]} 1-0

[Event "Early-Titled-Tuesday-Blitz-October-17-2023"]
[Site "Chess.com"]
[Date "2023.10.17"]
[Round "8"]
[White "WindWhistler11"]
[Black "HanSchut"]
[Result "0-1"]
[WhiteElo "2451"]
[BlackElo "2334"]
[TimeControl "180+1"]
[EndTime "9:32:57 PDT"]
[Termination "HanSchut won by resignation"]

1. Nf3 {[%clk 0:03:00.9]} 1... Nf6 {[%clk 0:02:59.5]} 2. d3 {[%clk 0:02:59]}
2... d5 {[%clk 0:02:57.9]} 3. Nbd2 {[%clk 0:02:59.9]} 3... c5 {[%clk 0:02:54.8]}
4. e4 {[%clk 0:03:00.5]} 4... Nc6 {[%clk 0:02:54.5]} 5. Be2 {[%clk 0:03:00.8]}
5... e5 {[%clk 0:02:53.9]} 6. O-O {[%clk 0:03:01.3]} 6... h6 {[%clk 0:02:54]} 7.
Re1 {[%clk 0:03:01.5]} 7... Be6 {[%clk 0:02:50.9]} 8. c3 {[%clk 0:03:02.1]} 8...
Bd6 {[%clk 0:02:49.6]} 9. Qc2 {[%clk 0:03:02.7]} 9... Rc8 {[%clk 0:02:45.2]} 10.
exd5 {[%clk 0:03:02.7]} 10... Nxd5 {[%clk 0:02:44.6]} 11. Nc4 {[%clk 0:03:03.1]}
11... f6 {[%clk 0:02:41]} 12. Bf1 {[%clk 0:03:03.4]} 12... O-O {[%clk
0:02:36.9]} 13. a4 {[%clk 0:03:03]} 13... b6 {[%clk 0:02:35.9]} 14. Nfd2 {[%clk
0:03:01.1]} 14... Qd7 {[%clk 0:02:32.4]} 15. Ne4 {[%clk 0:02:58.5]} 15... Bb8
{[%clk 0:02:29.7]} 16. a5 {[%clk 0:02:58.3]} 16... f5 {[%clk 0:02:05.1]} 17.
Ned2 {[%clk 0:02:52.7]} 17... b5 {[%clk 0:02:02.1]} 18. Na3 {[%clk 0:02:47.9]}
18... a6 {[%clk 0:02:01.6]} 19. Nb3 {[%clk 0:02:47.8]} 19... Bd6 {[%clk
0:01:48.9]} 20. Qd1 {[%clk 0:02:44.8]} 20... Nf6 {[%clk 0:01:43.9]} 21. Nd2
{[%clk 0:02:22.8]} 21... Nxa5 {[%clk 0:01:32.9]} 22. Nc2 {[%clk 0:02:17.7]}
22... Nb3 {[%clk 0:01:27.6]} 23. Rxa6 {[%clk 0:02:13.6]} 23... Ra8 {[%clk
0:01:14.1]} 24. Rxa8 {[%clk 0:02:04.8]} 24... Rxa8 {[%clk 0:01:15]} 25. d4
{[%clk 0:01:54.6]} 25... cxd4 {[%clk 0:01:04.3]} 26. cxd4 {[%clk 0:01:53.7]}
26... e4 {[%clk 0:01:04.3]} 27. Nb1 {[%clk 0:01:40.5]} 27... Qc7 {[%clk
0:00:48]} 28. g3 {[%clk 0:01:32.2]} 28... Nxc1 {[%clk 0:00:43.5]} 29. Qxc1
{[%clk 0:01:32.5]} 29... Rc8 {[%clk 0:00:43.9]} 30. Nc3 {[%clk 0:01:17.8]} 30...
b4 {[%clk 0:00:43.3]} 31. Nb5 {[%clk 0:01:18.3]} 31... Qxc2 {[%clk 0:00:25.5]}
32. Qxc2 {[%clk 0:01:18.8]} 32... Rxc2 {[%clk 0:00:26.3]} 33. Nxd6 {[%clk
0:01:19.5]} 33... Rxb2 {[%clk 0:00:26.1]} 34. Ra1 {[%clk 0:01:14.9]} 34... Ra2
{[%clk 0:00:20.4]} 35. Rb1 {[%clk 0:01:09.4]} 35... b3 {[%clk 0:00:20.7]} 36.
Nc4 {[%clk 0:01:08.4]} 36... Ra4 {[%clk 0:00:07.1]} 37. Ne5 {[%clk 0:00:33.1]}
37... Rxd4 {[%clk 0:00:07.1]} 38. Nc6 {[%clk 0:00:33.7]} 38... Rd2 {[%clk
0:00:04.6]} 39. Na5 {[%clk 0:00:29]} 39... b2 {[%clk 0:00:04.6]} 40. Bc4 {[%clk
0:00:29.5]} 40... Bxc4 {[%clk 0:00:01.7]} 41. Nxc4 {[%clk 0:00:30.4]} 41... Rc2
{[%clk 0:00:02.6]} 42. Nxb2 {[%clk 0:00:30.7]} 42... e3 {[%clk 0:00:02.6]} 43.
fxe3 {[%clk 0:00:29.8]} 43... Ng4 {[%clk 0:00:03]} 44. Nd1 {[%clk 0:00:27.6]}
44... Nxh2 {[%clk 0:00:02.8]} 45. Rb8+ {[%clk 0:00:27.4]} 45... Kh7 {[%clk
0:00:03.1]} 46. Nf2 {[%clk 0:00:26.6]} 46... Nf3+ {[%clk 0:00:03.3]} 47. Kg2
{[%clk 0:00:27.3]} 47... Ne1+ {[%clk 0:00:04]} 48. Kf1 {[%clk 0:00:27.8]} 48...
Nf3 {[%clk 0:00:04.4]} 49. Rb5 {[%clk 0:00:26.9]} 49... g6 {[%clk 0:00:03.5]}
50. Rb7+ {[%clk 0:00:27]} 50... Kg8 {[%clk 0:00:03.9]} 51. g4 {[%clk 0:00:27.8]}
51... Nd2+ {[%clk 0:00:02.6]} 52. Ke2 {[%clk 0:00:27.6]} 52... Ne4+ {[%clk
0:00:03.5]} 53. Kd3 {[%clk 0:00:27.7]} 53... Rxf2 {[%clk 0:00:03.9]} 54. Rb8+
{[%clk 0:00:28.1]} 54... Kg7 {[%clk 0:00:04.2]} 55. Rb7+ {[%clk 0:00:29]} 55...
Kf6 {[%clk 0:00:04.7]} 56. gxf5 {[%clk 0:00:29.9]} 56... Kxf5 {[%clk 0:00:05.1]}
57. Rb6 {[%clk 0:00:30.5]} 57... Nf6 {[%clk 0:00:04.3]} 58. Rb5+ {[%clk
0:00:30.3]} 58... Kg4 {[%clk 0:00:04.8]} 59. Rb4+ {[%clk 0:00:30.2]} 59... Kg5
{[%clk 0:00:05.2]} 60. Rb5+ {[%clk 0:00:30.7]} 60... Rf5 {[%clk 0:00:06]} 61.
Rb2 {[%clk 0:00:30.8]} 61... h5 {[%clk 0:00:06]} 62. Rg2+ {[%clk 0:00:31.4]}
62... Ng4 {[%clk 0:00:06.5]} 0-1

[Event "Early-Titled-Tuesday-Blitz-October-17-2023"]
[Site "Chess.com"]
[Date "2023.10.17"]
[Round "8"]
[White "ChessSkool"]
[Black "ckgchess"]
[Result "1-0"]
[WhiteElo "2690"]
[BlackElo "2872"]
[TimeControl "180+1"]
[EndTime "9:32:59 PDT"]
[Termination "ChessSkool won on time"]

1. e4 {[%clk 0:02:48.2]} 1... e5 {[%clk 0:03:00.1]} 2. Nf3 {[%clk 0:02:48.5]}
2... Nf6 {[%clk 0:03:00.9]} 3. Nc3 {[%clk 0:02:42]} 3... Nc6 {[%clk 0:03:00.8]}
4. Bb5 {[%clk 0:02:37.6]} 4... Bb4 {[%clk 0:02:58]} 5. O-O {[%clk 0:02:31.7]}
5... O-O {[%clk 0:02:57.3]} 6. d3 {[%clk 0:02:26]} 6... Bxc3 {[%clk 0:02:56.6]}
7. bxc3 {[%clk 0:02:26]} 7... d6 {[%clk 0:02:57.2]} 8. a4 {[%clk 0:01:52]} 8...
h6 {[%clk 0:02:55.4]} 9. a5 {[%clk 0:01:51]} 9... a6 {[%clk 0:02:55]} 10. Bc4
{[%clk 0:01:42.3]} 10... Be6 {[%clk 0:02:42.2]} 11. Bxe6 {[%clk 0:01:41.3]}
11... fxe6 {[%clk 0:02:43.1]} 12. Re1 {[%clk 0:01:41.9]} 12... Rb8 {[%clk
0:02:41]} 13. c4 {[%clk 0:01:17]} 13... Kh7 {[%clk 0:02:28.3]} 14. Bd2 {[%clk
0:01:17.2]} 14... Qe8 {[%clk 0:02:28.1]} 15. Bc3 {[%clk 0:01:17.5]} 15... Qg6
{[%clk 0:02:21.7]} 16. g3 {[%clk 0:01:07.2]} 16... Nd7 {[%clk 0:02:11.6]} 17.
Nh4 {[%clk 0:01:04.5]} 17... Qf6 {[%clk 0:02:10.4]} 18. Rf1 {[%clk 0:00:59.3]}
18... g5 {[%clk 0:02:05.3]} 19. Ng2 {[%clk 0:00:59.5]} 19... Qg6 {[%clk
0:01:54.5]} 20. Ne3 {[%clk 0:00:56.8]} 20... Rf7 {[%clk 0:01:52]} 21. Rb1 {[%clk
0:00:50.9]} 21... Nc5 {[%clk 0:01:52.4]} 22. Kg2 {[%clk 0:00:49.8]} 22... Rbf8
{[%clk 0:01:52.3]} 23. Ra1 {[%clk 0:00:35.7]} 23... Rf3 {[%clk 0:01:46.1]} 24.
Qxf3 {[%clk 0:00:32]} 24... Rxf3 {[%clk 0:01:47]} 25. Kxf3 {[%clk 0:00:32.8]}
25... Nd4+ {[%clk 0:01:26.3]} 26. Kg2 {[%clk 0:00:29.4]} 26... Qh5 {[%clk
0:01:19.3]} 27. f3 {[%clk 0:00:27.4]} 27... Ne2 {[%clk 0:01:08.1]} 28. Bd2
{[%clk 0:00:25.5]} 28... Qe8 {[%clk 0:01:07.4]} 29. c3 {[%clk 0:00:14]} 29...
Nxd3 {[%clk 0:01:05.6]} 30. Rf2 {[%clk 0:00:14.7]} 30... Nxf2 {[%clk 0:00:52.8]}
31. Kxf2 {[%clk 0:00:15.6]} 31... Qh5 {[%clk 0:00:48.8]} 32. Ng4 {[%clk
0:00:16.1]} 32... Qh3 {[%clk 0:00:34.2]} 33. Kxe2 {[%clk 0:00:16.2]} 33... Qg2+
{[%clk 0:00:34.9]} 34. Nf2 {[%clk 0:00:16.3]} 34... Qxh2 {[%clk 0:00:34.1]} 35.
g4 {[%clk 0:00:15.8]} 35... c6 {[%clk 0:00:26]} 36. Rh1 {[%clk 0:00:14.6]} 36...
Qg2 {[%clk 0:00:21.9]} 37. Bxg5 {[%clk 0:00:14.4]} 37... Kg6 {[%clk 0:00:22.6]}
38. Bxh6 {[%clk 0:00:13]} 38... d5 {[%clk 0:00:23.1]} 39. cxd5 {[%clk
0:00:05.9]} 39... exd5 {[%clk 0:00:24]} 40. Be3 {[%clk 0:00:04.1]} 40... Kg7
{[%clk 0:00:07.2]} 41. Rb1 {[%clk 0:00:03.9]} 41... dxe4 {[%clk 0:00:05.1]} 42.
fxe4 {[%clk 0:00:04.8]} 42... Kf6 {[%clk 0:00:04.1]} 43. Rxb7 {[%clk 0:00:05.4]}
43... Qg1 {[%clk 0:00:03.7]} 44. Rb6 {[%clk 0:00:04.8]} 44... Qa1 {[%clk
0:00:04.3]} 45. Rxc6+ {[%clk 0:00:04.3]} 45... Kf7 {[%clk 0:00:05.1]} 46. Rxa6
{[%clk 0:00:04.5]} 46... Qa2+ {[%clk 0:00:05.1]} 47. Kf3 {[%clk 0:00:04.6]}
47... Qc4 {[%clk 0:00:05.6]} 48. Ra7+ {[%clk 0:00:04.4]} 48... Kg6 {[%clk
0:00:06.3]} 49. Rb7 {[%clk 0:00:03.5]} 49... Qxc3 {[%clk 0:00:02.2]} 50. Rb6+
{[%clk 0:00:04]} 50... Kf7 {[%clk 0:00:02.2]} 51. a6 {[%clk 0:00:04.9]} 51...
Qa1 {[%clk 0:00:02.9]} 52. a7 {[%clk 0:00:04.4]} 52... Qa3 {[%clk 0:00:02]} 53.
Rb8 {[%clk 0:00:04.2]} 1-0

[Event "Early-Titled-Tuesday-Blitz-October-17-2023"]
[Site "Chess.com"]
[Date "2023.10.17"]
[Round "8"]
[White "mfwagnerpeixoto"]
[Black "kingapolak"]
[Result "1-0"]
[WhiteElo "2322"]
[BlackElo "2145"]
[TimeControl "180+1"]
[EndTime "9:32:59 PDT"]
[Termination "mfwagnerpeixoto won on time"]

1. e4 {[%clk 0:02:54.1]} 1... c5 {[%clk 0:02:58.1]} 2. Nf3 {[%clk 0:02:50.5]}
2... Nc6 {[%clk 0:02:57.9]} 3. Bb5 {[%clk 0:02:49.3]} 3... g6 {[%clk 0:02:56.5]}
4. O-O {[%clk 0:02:48.6]} 4... Bg7 {[%clk 0:02:56.4]} 5. Re1 {[%clk 0:02:47.3]}
5... Nf6 {[%clk 0:02:42]} 6. e5 {[%clk 0:02:46.1]} 6... Nd5 {[%clk 0:02:42.1]}
7. Nc3 {[%clk 0:02:46.5]} 7... Nxc3 {[%clk 0:02:38.1]} 8. dxc3 {[%clk
0:02:46.1]} 8... O-O {[%clk 0:02:38.8]} 9. Bf4 {[%clk 0:02:35.8]} 9... Qb6
{[%clk 0:02:34.2]} 10. a4 {[%clk 0:02:16.6]} 10... a6 {[%clk 0:02:34.3]} 11. Bc4
{[%clk 0:02:16.6]} 11... Na5 {[%clk 0:02:27.6]} 12. Bf1 {[%clk 0:02:07.6]} 12...
Qd8 {[%clk 0:02:11.7]} 13. b4 {[%clk 0:02:01.4]} 13... cxb4 {[%clk 0:02:06]} 14.
cxb4 {[%clk 0:02:02.3]} 14... Nc6 {[%clk 0:02:06.7]} 15. c3 {[%clk 0:01:54.9]}
15... b6 {[%clk 0:02:02.6]} 16. Qd2 {[%clk 0:01:50.8]} 16... Bb7 {[%clk
0:02:02.1]} 17. Rad1 {[%clk 0:01:50.9]} 17... Nb8 {[%clk 0:01:53.4]} 18. Nd4
{[%clk 0:01:33.7]} 18... Qc8 {[%clk 0:01:50]} 19. Rc1 {[%clk 0:01:28.1]} 19...
Nc6 {[%clk 0:01:47.7]} 20. Nb3 {[%clk 0:01:16.9]} 20... Qc7 {[%clk 0:01:35.1]}
21. Rcd1 {[%clk 0:01:06.7]} 21... Rad8 {[%clk 0:01:34.2]} 22. Qe3 {[%clk
0:01:01.9]} 22... e6 {[%clk 0:01:23.7]} 23. h4 {[%clk 0:00:48.9]} 23... h5
{[%clk 0:01:22.3]} 24. Nd4 {[%clk 0:00:40.8]} 24... Ne7 {[%clk 0:01:21.1]} 25.
Bg5 {[%clk 0:00:38.2]} 25... Nd5 {[%clk 0:01:19.6]} 26. Bxd8 {[%clk 0:00:36.6]}
26... Rxd8 {[%clk 0:00:57.5]} 27. Qg3 {[%clk 0:00:36.3]} 27... Ba8 {[%clk
0:00:45.4]} 28. Rc1 {[%clk 0:00:33.3]} 28... Qb7 {[%clk 0:00:45.4]} 29. b5
{[%clk 0:00:31.7]} 29... a5 {[%clk 0:00:43.6]} 30. Be2 {[%clk 0:00:28.9]} 30...
Rc8 {[%clk 0:00:40.4]} 31. Bf3 {[%clk 0:00:28.4]} 31... Qc7 {[%clk 0:00:38.6]}
32. c4 {[%clk 0:00:27.1]} 32... Nb4 {[%clk 0:00:38.5]} 33. Bxa8 {[%clk
0:00:26.9]} 33... Rxa8 {[%clk 0:00:39.4]} 34. Rcd1 {[%clk 0:00:22]} 34... Qxc4
{[%clk 0:00:37]} 35. Qf3 {[%clk 0:00:19.5]} 35... Rf8 {[%clk 0:00:34.1]} 36. Ne2
{[%clk 0:00:18.1]} 36... Bxe5 {[%clk 0:00:32.4]} 37. Ng3 {[%clk 0:00:18.3]}
37... Bg7 {[%clk 0:00:24.4]} 38. Rxd7 {[%clk 0:00:17]} 38... Nc2 {[%clk
0:00:23.8]} 39. Rf1 {[%clk 0:00:15.3]} 39... Qxa4 {[%clk 0:00:23.7]} 40. Ne4
{[%clk 0:00:13.4]} 40... Nd4 {[%clk 0:00:15.2]} 41. Qe3 {[%clk 0:00:10.2]} 41...
Nf5 {[%clk 0:00:08.5]} 42. Qf4 {[%clk 0:00:10.3]} 42... Qxb5 {[%clk 0:00:08]}
43. Rb7 {[%clk 0:00:09.5]} 43... a4 {[%clk 0:00:07.7]} 44. g4 {[%clk 0:00:07.2]}
44... hxg4 {[%clk 0:00:06.9]} 45. h5 {[%clk 0:00:07.8]} 45... gxh5 {[%clk
0:00:06.5]} 46. Qg5 {[%clk 0:00:06.9]} 46... Qe5 {[%clk 0:00:05.8]} 47. Re1
{[%clk 0:00:04.5]} 47... Qd4 {[%clk 0:00:02.3]} 48. Rxb6 {[%clk 0:00:03.5]} 1-0

[Event "Early-Titled-Tuesday-Blitz-October-17-2023"]
[Site "Chess.com"]
[Date "2023.10.17"]
[Round "8"]
[White "GaiozNigalidze"]
[Black "HajiyevKanan"]
[Result "0-1"]
[WhiteElo "2694"]
[BlackElo "2557"]
[TimeControl "180+1"]
[EndTime "9:33:00 PDT"]
[Termination "HajiyevKanan won by resignation"]

1. e4 {[%clk 0:03:00.9]} 1... c6 {[%clk 0:02:59.9]} 2. h4 {[%clk 0:02:59.9]}
2... d5 {[%clk 0:03:00.8]} 3. e5 {[%clk 0:02:59.9]} 3... c5 {[%clk 0:03:01.2]}
4. Bb5+ {[%clk 0:02:58.6]} 4... Bd7 {[%clk 0:03:01]} 5. Bxd7+ {[%clk 0:02:58.9]}
5... Qxd7 {[%clk 0:03:01.9]} 6. d4 {[%clk 0:02:58.9]} 6... cxd4 {[%clk
0:03:00.8]} 7. Nf3 {[%clk 0:02:52.6]} 7... Nc6 {[%clk 0:02:59.9]} 8. Bf4 {[%clk
0:02:52]} 8... Qg4 {[%clk 0:02:52.4]} 9. Bg3 {[%clk 0:02:51.8]} 9... Qe4+ {[%clk
0:02:51.7]} 10. Kf1 {[%clk 0:02:51.3]} 10... e6 {[%clk 0:02:27]} 11. Nbd2 {[%clk
0:02:49.6]} 11... Qf5 {[%clk 0:02:25.1]} 12. Nb3 {[%clk 0:02:48.9]} 12... Nh6
{[%clk 0:01:58.4]} 13. Nbxd4 {[%clk 0:02:44.5]} 13... Nxd4 {[%clk 0:01:58.4]}
14. Nxd4 {[%clk 0:02:45.4]} 14... Qg4 {[%clk 0:01:50.8]} 15. Qd3 {[%clk
0:02:38.1]} 15... a6 {[%clk 0:01:46.1]} 16. h5 {[%clk 0:02:08.1]} 16... Bc5
{[%clk 0:01:25.3]} 17. Rh4 {[%clk 0:02:06.7]} 17... Qg5 {[%clk 0:01:23.3]} 18.
Nf3 {[%clk 0:01:55.5]} 18... Qe7 {[%clk 0:01:17.8]} 19. Rf4 {[%clk 0:01:47]}
19... Nf5 {[%clk 0:01:06.2]} 20. Bh2 {[%clk 0:01:31.4]} 20... h6 {[%clk
0:01:05.9]} 21. c3 {[%clk 0:00:50.1]} 21... O-O {[%clk 0:01:01.7]} 22. Rd1
{[%clk 0:00:47.8]} 22... b5 {[%clk 0:01:00.7]} 23. g4 {[%clk 0:00:34.6]} 23...
Nh4 {[%clk 0:01:00]} 24. Bg3 {[%clk 0:00:31.8]} 24... Nxf3 {[%clk 0:00:56.2]}
25. Qxf3 {[%clk 0:00:32.7]} 25... f6 {[%clk 0:00:53.2]} 26. exf6 {[%clk
0:00:30.5]} 26... Rxf6 {[%clk 0:00:53.4]} 27. Rxf6 {[%clk 0:00:18.9]} 27... Qxf6
{[%clk 0:00:53]} 28. Kg2 {[%clk 0:00:18]} 28... Rf8 {[%clk 0:00:47]} 29. Qxf6
{[%clk 0:00:16.5]} 29... gxf6 {[%clk 0:00:42]} 30. f4 {[%clk 0:00:15.2]} 30...
Kf7 {[%clk 0:00:41.5]} 31. Kf3 {[%clk 0:00:15.1]} 31... Re8 {[%clk 0:00:41.8]}
32. Re1 {[%clk 0:00:15.6]} 32... a5 {[%clk 0:00:42.1]} 33. a3 {[%clk 0:00:15.6]}
33... b4 {[%clk 0:00:41.3]} 34. axb4 {[%clk 0:00:16.5]} 34... axb4 {[%clk
0:00:42]} 35. Rc1 {[%clk 0:00:16.1]} 35... bxc3 {[%clk 0:00:41.9]} 36. Rxc3
{[%clk 0:00:16.8]} 36... Bd6 {[%clk 0:00:40.5]} 37. Rc6 {[%clk 0:00:16.9]} 37...
Ke7 {[%clk 0:00:39.7]} 38. Rb6 {[%clk 0:00:17]} 38... Rb8 {[%clk 0:00:39]} 39.
Rxb8 {[%clk 0:00:17]} 39... Bxb8 {[%clk 0:00:39.9]} 40. g5 {[%clk 0:00:17.5]}
40... hxg5 {[%clk 0:00:24.2]} 41. fxg5 {[%clk 0:00:18.4]} 41... e5 {[%clk
0:00:24.9]} 42. h6 {[%clk 0:00:15.6]} 42... Kf7 {[%clk 0:00:19.4]} 43. h7 {[%clk
0:00:16.1]} 43... Kg7 {[%clk 0:00:19.3]} 44. g6 {[%clk 0:00:15.9]} 44... f5
{[%clk 0:00:16]} 45. Bh4 {[%clk 0:00:14.9]} 45... e4+ {[%clk 0:00:15.3]} 46. Ke2
{[%clk 0:00:15]} 46... Be5 {[%clk 0:00:16.2]} 47. b4 {[%clk 0:00:15.1]} 47...
Kxg6 {[%clk 0:00:16.4]} 48. Bg3 {[%clk 0:00:14.6]} 48... Bd4 {[%clk 0:00:14.4]}
49. Bf2 {[%clk 0:00:13.7]} 49... Be5 {[%clk 0:00:14.5]} 50. h8=Q {[%clk
0:00:13.8]} 50... Bxh8 {[%clk 0:00:14.1]} 51. b5 {[%clk 0:00:14.7]} 51... Be5
{[%clk 0:00:11]} 52. b6 {[%clk 0:00:15.6]} 52... f4 {[%clk 0:00:10.5]} 53. b7
{[%clk 0:00:16.3]} 53... Bb8 {[%clk 0:00:10.8]} 54. Bd4 {[%clk 0:00:16]} 54...
Kf5 {[%clk 0:00:11]} 55. Kd2 {[%clk 0:00:16.6]} 55... Kg4 {[%clk 0:00:09.3]} 56.
Ke2 {[%clk 0:00:16.9]} 56... Kg3 {[%clk 0:00:08.8]} 57. Bf2+ {[%clk 0:00:16.7]}
57... Kg2 {[%clk 0:00:08.6]} 58. Bd4 {[%clk 0:00:17.6]} 58... Kg3 {[%clk
0:00:06.4]} 59. Bf2+ {[%clk 0:00:17.5]} 59... Kg4 {[%clk 0:00:07]} 60. Bd4
{[%clk 0:00:18.4]} 60... Kf5 {[%clk 0:00:07.4]} 61. Kd2 {[%clk 0:00:18.6]} 61...
Ke6 {[%clk 0:00:07.8]} 62. Kc3 {[%clk 0:00:19.2]} 62... Kd6 {[%clk 0:00:07.5]}
63. Kb4 {[%clk 0:00:19.1]} 63... Kc6 {[%clk 0:00:08]} 0-1